bitfinex/quotes_ETHUSD_20250214
["timestamp","ask_amount","ask_price","bid_price","bid_amount"]
[1739528971339,3.69167,2708.8,2708.7,0.15910959]
[1739528971765,3.69194,2708.6,2708.5,0.9543106]
[1739528972643,3.69194,2708.6,2708.5,0.1478106]
[1739528977685,3.69194,2708.6,2708.5,0.30713548]
[1739528977857,2.42007515,2709.1,2708.6,0.7644]
[1739528977858,3.6916,2708.9,2708.6,0.7644]
[1739528978064,3.6918,2708.7,2708.6,0.7644]
[1739528978263,3.69167,2708.8,2708.6,0.7644]
[1739528978473,3.69167,2708.8,2708.6,0.92361723]
[1739528979451,7.38341,2708.8,2708.6,0.92361723]
[1739528979652,3.6918,2708.7,2708.6,0.92361723]
[1739528987658,3.69167,2708.8,2708.6,0.92361723]
[1739528987858,3.0,2709.2,2708.6,1.39997601]
[1739528988163,3.69163,2708.9,2708.6,0.92361723]
[1739528988864,3.69162,2708.9,2708.6,0.92361723]
[1739528989278,7.38322,2708.9,2708.6,0.92361723]
[1739528989955,3.6916,2708.9,2708.6,0.92361723]
[1739528990095,7.38322,2708.9,2708.6,0.92361723]
[1739528990407,3.6916,2708.9,2708.6,0.92361723]
[1739528990979,7.38323,2708.9,2708.6,0.92361723]
[1739528991622,3.6916,2708.9,2708.6,0.92361723]
[1739528991781,7.38324,2708.9,2708.6,0.92361723]
[1739528992112,3.6916,2708.9,2708.6,0.92361723]
[1739528992685,7.38323,2708.9,2708.6,0.92361723]
[1739528993707,3.6916,2708.9,2708.6,0.92361723]
[1739528994207,7.38324,2708.9,2708.6,0.92361723]
[1739528994364,3.23657515,2709.7,2708.7,0.7966]
[1739528994564,3.69089,2709.4,2708.9,4.48806]
[1739528994770,3.69085,2709.4,2708.9,0.7966]
[1739528994967,3.69098,2709.4,2709.1,0.7966]
[1739528995405,3.69099,2709.3,2709.2,0.15876035]
[1739529000111,3.69007,2710.0,2709.5,0.7966]
[1739529000419,3.69044,2709.7,2709.5,0.7966]
[1739529000618,3.69071,2709.5,2709.4,0.15844884]
[1739529000805,3.69059,2709.6,2709.4,0.15844884]
[1739529001005,3.6904,2709.8,2709.5,0.7966]
[1739529002307,3.69011,2710.0,2709.5,0.7966]
[1739529002509,3.6899,2710.1,2709.6,4.48717]
[1739529002711,3.69005,2710.0,2709.6,0.7966]
[1739529003552,3.6898,2710.2,2709.7,0.7966]
[1739529003766,3.6898,2710.2,2709.8,0.7966]
[1739529004449,1.26249468,2710.5,2709.8,0.7966]
[1739529004450,3.69016,2710.0,2709.8,0.7966]
[1739529006047,3.69013,2710.0,2709.8,0.7966]
[1739529006471,3.69017,2709.9,2709.8,0.7966]
[1739529006671,4.4282,2709.9,2709.5,0.7966]
[1739529006845,3.6904,2709.8,2709.5,0.7966]
[1739529007241,3.69017,2709.9,2709.5,0.7966]
[1739529007456,3.68998,2710.1,2709.5,0.7966]
[1739529007656,3.69044,2709.7,2709.6,0.7966]
[1739529008058,3.69044,2709.7,2709.4,0.95504884]
[1739529008463,3.69032,2709.8,2709.4,0.95504884]
[1739529008691,3.69017,2709.9,2709.4,0.95504884]
[1739529008874,3.69038,2709.8,2709.4,0.95504884]
[1739529009562,3.68998,2710.1,2709.5,3.69061]
[1739529009756,3.68971,2710.3,2709.8,0.7682]
[1739529009953,3.69071,2709.5,2709.4,0.15844884]
[1739529010153,3.69059,2709.6,2709.4,0.15844884]
[1739529010361,3.68985,2710.2,2709.5,0.7682]
[1739529010583,3.68999,2710.1,2709.7,0.7682]
[1739529010892,3.23467515,2710.4,2709.7,0.7682]
[1739529011095,3.68976,2710.2,2709.7,0.7682]
[1739529011252,3.68976,2710.2,2709.8,0.7682]
[1739529011447,3.68973,2710.3,2709.8,0.7682]
[1739529011448,3.68971,2710.3,2709.8,0.7682]
[1739529011653,4.95193468,2710.5,2709.8,3.69027]
[1739529011881,3.68971,2710.3,2709.9,0.7682]
[1739529012156,3.68977,2710.2,2709.9,0.7682]
[1739529012358,3.68992,2710.1,2709.9,0.7682]
[1739529012592,7.37945,2710.3,2709.9,0.7682]
[1739529012778,3.68981,2710.2,2709.9,0.7682]
[1739529013293,3.68971,2710.3,2709.9,0.7682]
[1739529013490,3.6897,2710.3,2709.9,0.7682]
[1739529014471,3.68992,2710.1,2709.9,0.7682]
[1739529014685,3.6897,2710.3,2709.9,0.7682]
[1739529015510,4.95193468,2710.5,2710.0,3.69]
[1739529015656,1.26249468,2710.5,2710.1,3.68988]
[1739529015859,1.26249468,2710.5,2710.2,0.7682]
[1739529016056,1.26249468,2710.5,2710.2,0.9251451]
[1739529016701,1.26249468,2710.5,2710.4,4.45769]
[1739529016853,1.26249468,2710.5,2710.4,0.7682]
[1739529017061,1.26249468,2710.5,2710.4,0.92492624]
[1739529019607,1.26249468,2710.5,2710.4,4.61441624]
[1739529020118,1.26249468,2710.5,2710.4,0.92492624]
[1739529020323,1.26249468,2710.5,2710.4,1.43252512]
[1739529020524,1.26249468,2710.5,2710.4,5.12201512]
[1739529022422,4.42858241,2711.6,2710.5,0.763]
[1739529022423,3.68862,2711.1,2710.5,0.763]
[1739529022652,7.37724,2711.1,2710.6,3.68919]
[1739529022824,3.6884,2711.2,2710.6,3.8456358]
[1739529022994,3.6886,2711.1,2710.7,0.46086358]
[1739529023199,3.6886,2711.1,2710.7,0.61680918]
[1739529025001,3.6886,2711.1,2710.8,0.763]
[1739529025360,3.6886,2711.1,2710.8,0.91883813]
[1739529026049,3.68869,2711.0,2710.8,0.91883813]
[1739529028858,3.68881,2710.9,2710.8,0.91883813]
[1739529029433,3.68881,2710.9,2710.8,0.15583813]
[1739529029904,0.81361,2710.9,2710.1,0.763]
[1739529030109,3.68949,2710.4,2710.1,0.763]
[1739529030310,3.68949,2710.4,2710.2,0.15620205]
[1739529030745,3.68928,2710.6,2710.2,0.15620205]
[1739529030908,3.68945,2710.5,2710.2,0.15620205]
[1739529031544,3.68952,2710.4,2710.2,0.15620205]
[1739529032610,3.68928,2710.6,2710.2,0.15620205]
[1739529032611,3.68935,2710.5,2710.2,0.15620205]
[1739529033216,3.68928,2710.6,2710.2,0.15620205]
[1739529034754,7.37862,2710.6,2710.2,0.15620205]
[1739529034921,3.68928,2710.6,2710.2,0.15620205]
[1739529035115,3.68936,2710.5,2710.2,0.15620205]
[1739529037244,3.68955,2710.4,2710.2,0.15620205]
[1739529037653,3.68936,2710.5,2710.2,0.15620205]
[1739529038247,6.10923515,2710.7,2710.2,0.15620205]
[1739529038445,5.32871,2710.9,2710.3,3.68954]
[1739529038660,3.6889,2710.9,2710.4,0.8276]
[1739529038821,3.6889,2710.9,2710.4,4.67320721]
[1739529040463,3.6889,2710.9,2710.4,4.67325721]
[1739529040670,3.6889,2710.9,2710.4,4.51707]
[1739529040974,3.68868,2711.0,2710.5,0.15616056]
[1739529041142,3.68868,2711.0,2710.5,3.84543056]
[1739529041336,2.42007515,2711.3,2710.6,4.51675]
[1739529041537,3.68856,2711.1,2710.7,0.15594559]
[1739529041742,3.68851,2711.2,2710.7,0.15594559]
[1739529042046,3.68877,2711.0,2710.7,0.15594559]
[1739529043001,3.68885,2710.9,2710.7,0.15594559]
[1739529044876,3.68867,2711.0,2710.7,0.15594559]
[1739529046567,3.68882,2710.9,2710.7,0.15594559]
[1739529046772,4.883902,2710.9,2710.7,0.15594559]
[1739529046965,3.68894,2710.8,2710.3,0.8276]
[1739529047370,3.68884,2710.9,2710.4,3.68948]
[1739529047766,3.68884,2710.9,2710.5,0.8276]
[1739529048554,3.68859,2711.1,2710.5,0.8276]
[1739529048555,3.68874,2711.0,2710.5,4.51694]
[1739529048754,3.68874,2711.0,2710.5,5.33758]
[1739529049456,2.42007515,2711.3,2710.5,1.64824]
[1739529049457,3.68896,2710.8,2710.5,1.64824]
[1739529049689,3.68881,2710.9,2710.5,0.8276]
[1739529049897,3.68914,2710.7,2710.3,0.7798]
[1739529050235,3.68922,2710.6,2710.3,0.7798]
[1739529050497,7.37831,2710.7,2710.3,0.7798]
[1739529050805,3.68914,2710.7,2710.3,0.7798]
[1739529050955,7.3783,2710.7,2710.3,0.7798]
[1739529051155,3.68914,2710.7,2710.3,0.7798]
[1739529051391,3.6889,2710.9,2710.3,4.46941]
[1739529051567,3.68906,2710.8,2710.3,4.46941]
[1739529051769,3.68894,2710.8,2710.3,0.7798]
[1739529051971,3.6889,2710.9,2710.3,0.81669187]
[1739529052171,3.6889,2710.9,2710.5,3.68935]
[1739529052565,3.6889,2710.9,2710.4,4.46928]
[1739529052771,3.68896,2710.8,2710.4,0.7798]
[1739529053303,3.68882,2710.9,2710.4,4.46928]
[1739529054700,3.68869,2711.0,2710.4,0.7798]
[1739529055002,3.68869,2711.0,2710.5,4.18881721]
[1739529055174,3.68857,2711.1,2710.6,4.469]
[1739529055375,3.68872,2711.0,2710.6,0.7798]
[1739529056299,3.68902,2710.8,2710.4,0.7798]
[1739529056457,3.68908,2710.7,2710.4,0.7798]
[1739529056975,3.68923,2710.6,2710.4,0.7798]
[1739529058187,3.68909,2710.7,2710.4,0.7798]
[1739529058766,3.68909,2710.7,2710.5,0.1559758]
[1739529059297,3.68909,2710.7,2710.2,4.46955]
[1739529059505,3.68909,2710.7,2710.6,0.15586831]
[1739529059705,3.68909,2710.7,2710.2,5.4130005]
[1739529059889,3.68909,2710.7,2710.6,0.15586831]
[1739529060093,3.68909,2710.7,2710.2,5.4130005]
[1739529060264,3.68909,2710.7,2710.6,0.15586831]
[1739529060463,3.68909,2710.7,2710.2,5.4130005]
[1739529060464,3.68909,2710.7,2710.2,4.46955]
[1739529060705,3.68909,2710.7,2710.6,0.15586831]
[1739529060865,3.68909,2710.7,2710.2,4.46955]
[1739529061070,3.68909,2710.7,2710.6,0.15586831]
[1739529061390,3.68909,2710.7,2710.6,0.15591063]
[1739529061609,3.68909,2710.7,2710.2,4.46948]
[1739529061812,3.68909,2710.7,2710.6,0.15591063]
[1739529062125,4.46389,2710.8,2710.3,3.68951]
[1739529062294,0.7749,2710.8,2710.6,0.15591063]
[1739529062495,4.46338,2711.2,2710.4,0.7798]
[1739529062700,7.37745,2711.0,2710.7,0.15580316]
[1739529062879,3.68882,2710.9,2710.4,4.46923]
[1739529063079,3.68882,2710.9,2710.4,8.15865]
[1739529063285,3.6891,2710.7,2710.5,0.15601812]
[1739529064097,3.68922,2710.6,2710.5,0.15601812]
[1739529064432,3.68922,2710.6,2710.1,0.7798]
[1739529064582,3.68922,2710.6,2710.5,0.15600657]
[1739529064780,4.74654952,2710.6,2710.1,0.7798]
[1739529064985,3.68991,2710.1,2709.7,0.8031]
[1739529065242,3.18777515,2710.4,2709.7,4.49346]
[1739529065243,3.68979,2710.2,2709.7,4.49346]
[1739529065421,3.68979,2710.2,2709.8,3.6903]
[1739529065602,6.87726515,2710.4,2709.8,3.6903]
[1739529065804,6.87726515,2710.4,2709.8,4.508676]
[1739529066190,3.68974,2710.3,2709.8,0.818376]
[1739529066391,3.68962,2710.3,2709.8,0.818376]
[1739529066617,7.37935,2710.3,2709.8,0.818376]
[1739529067298,3.68962,2710.3,2709.7,4.49344]
[1739529067533,3.68962,2710.3,2709.7,8.18376]
[1739529067687,3.68962,2710.3,2709.7,4.49342]
[1739529068029,3.68962,2710.3,2709.8,3.69029]
[1739529069125,3.18777515,2710.4,2709.7,0.8031]
[1739529069363,3.68945,2710.5,2710.1,0.7817]
[1739529070145,3.6895,2710.4,2710.1,0.7817]
[1739529070486,3.68945,2710.5,2710.1,0.7817]
[1739529071417,7.37892,2710.5,2710.1,0.7817]
[1739529071726,3.68945,2710.5,2710.1,0.7817]
[1739529071932,3.6895,2710.4,2710.1,0.7817]
[1739529072144,3.23827515,2710.7,2710.1,0.7817]
[1739529072424,3.68937,2710.5,2710.1,4.47159]
[1739529072625,3.68937,2710.5,2710.1,0.7817]
[1739529072864,3.68937,2710.5,2710.2,0.15652926]
[1739529073202,3.68922,2710.6,2710.2,0.15652926]
[1739529073422,2.42007515,2710.7,2710.3,3.6896]
[1739529073810,0.8182,2710.9,2710.4,0.15631425]
[1739529073811,3.68925,2710.6,2710.4,0.15631425]
[1739529074011,3.68925,2710.6,2710.1,4.47159]
[1739529074202,3.68925,2710.6,2710.5,0.15629915]
[1739529074433,4.42708,2710.6,2710.1,4.47159]
[1739529074731,3.68925,2710.6,2710.1,4.47159]
[1739529075045,3.68925,2710.6,2710.2,0.15662165]
[1739529078934,3.68925,2710.6,2710.2,3.84637165]
[1739529079154,3.68925,2710.6,2710.2,0.15662165]
[1739529080463,3.68925,2710.6,2710.2,3.84636165]
[1739529081236,4.50701,2710.9,2710.3,3.68962]
[1739529081440,4.50701,2710.9,2710.4,0.7765]
[1739529081637,3.68901,2710.8,2710.4,0.93290664]
[1739529081940,3.6891,2710.7,2710.4,0.93290664]
[1739529082140,3.6892,2710.7,2710.2,4.46616]
[1739529082364,3.6892,2710.7,2710.3,0.15644485]
[1739529082575,3.68894,2710.8,2710.2,4.46616]
[1739529082746,3.68909,2710.7,2710.3,0.15644485]
[1739529082946,3.68909,2710.7,2710.2,4.46616]
[1739529083302,3.68909,2710.7,2710.3,0.15644485]
[1739529083580,3.68909,2710.7,2710.2,4.46615]
[1739529083739,7.37805,2710.8,2710.4,0.15633734]
[1739529083938,3.68901,2710.8,2710.4,0.15633734]
[1739529084169,3.68901,2710.8,2710.4,3.84579734]
[1739529085069,7.37805,2710.8,2710.4,0.15633734]
[1739529085381,3.68909,2710.7,2710.2,8.15584]
[1739529085583,3.68909,2710.7,2710.5,0.1562337]
[1739529085785,3.68909,2710.7,2710.2,4.46615]
[1739529085941,3.68909,2710.7,2710.6,0.15612621]
[1739529086143,3.68909,2710.7,2710.2,8.15584]
[1739529086356,3.68909,2710.7,2710.3,3.84605869]
[1739529086884,3.68894,2710.8,2710.3,3.84605869]
[1739529087268,0.8254,2711.2,2710.4,0.7887]
[1739529087469,3.68868,2711.0,2710.6,3.68921]
[1739529087982,3.68868,2711.0,2710.7,0.15601873]
[1739529089058,3.68883,2710.9,2710.7,0.15601873]
[1739529089258,3.68883,2710.9,2710.4,8.16764]
[1739529089455,3.68883,2710.9,2710.8,0.15580348]
[1739529089660,3.68883,2710.9,2710.5,3.68934]
[1739529089877,3.68883,2710.9,2710.8,0.15580348]
[1739529090074,3.68883,2710.9,2710.5,3.68934]
[1739529090272,3.68883,2710.9,2710.8,0.15580348]
[1739529090482,3.68883,2710.9,2710.5,3.68934]
[1739529090960,3.68854,2711.1,2710.6,0.15601843]
[1739529092002,3.68875,2711.0,2710.6,0.15601843]
[1739529092506,3.68881,2710.9,2710.6,0.15601843]
[1739529093607,3.68854,2711.1,2710.6,3.84518843]
[1739529093763,3.68854,2711.1,2710.6,0.15601843]
[1739529093965,3.68874,2711.0,2710.6,0.15601843]
[1739529094164,3.68884,2710.9,2710.6,0.15601843]
[1739529097364,3.68884,2710.9,2710.4,4.47817]
[1739529097603,3.68884,2710.9,2710.5,0.15612591]
[1739529098176,3.68884,2710.9,2710.5,3.84547591]
[1739529098602,3.68884,2710.9,2710.5,0.15612591]
[1739529100118,3.68915,2710.7,2710.5,0.15612591]
[1739529101493,4.44265,2710.8,2710.5,0.15612591]
[1739529101697,3.68881,2710.9,2710.5,0.15612591]
[1739529101892,3.68881,2710.9,2710.5,3.84544591]
[1739529102294,7.37769,2710.9,2710.5,0.15612591]
[1739529102489,3.68881,2710.9,2710.5,0.15612591]
[1739529102689,2.42007515,2711.0,2710.5,0.9885085]
[1739529102935,6.10876515,2711.0,2710.6,3.68921]
[1739529103152,3.68869,2711.0,2710.5,0.9885085]
[1739529103323,3.68869,2711.0,2710.7,0.15577236]
[1739529103500,3.68869,2711.0,2710.6,0.15587984]
[1739529103823,3.68869,2711.0,2710.7,0.15577236]
[1739529104327,3.68869,2711.0,2710.5,4.52167259]
[1739529104524,3.68869,2711.0,2710.8,0.15566489]
[1739529104742,3.68869,2711.0,2710.5,3.68929]
[1739529104947,3.68869,2711.0,2710.9,0.15555743]
[1739529105143,3.68869,2711.0,2710.5,3.68929]
[1739529105285,3.68869,2711.0,2710.9,0.15555743]
[1739529105486,3.68869,2711.0,2710.5,3.68929]
[1739529105723,3.68869,2711.0,2710.9,0.15555743]
[1739529105903,3.68896,2710.8,2710.4,4.47816]
[1739529108414,0.7537,2710.7,2710.2,4.45586]
[1739529108617,4.44284,2710.7,2710.2,4.45586]
[1739529108816,4.44284,2710.7,2710.2,0.7662]
[1739529108817,3.68932,2710.6,2710.2,0.7662]
[1739529109221,3.68942,2710.5,2710.2,0.7662]
[1739529109826,3.68942,2710.5,2710.1,0.55]
[1739529113900,3.68967,2710.3,2710.0,0.8271]
[1739529114105,3.68984,2710.2,2710.0,0.8271]
[1739529114306,3.68984,2710.2,2709.9,0.55]
[1739529114734,4.46427,2710.3,2709.9,0.55]
[1739529115539,4.46427,2710.3,2709.9,4.24017]
[1739529118045,2.42007515,2710.4,2709.9,5.11594]
[1739529118356,0.7746,2710.5,2710.1,3.68989]
[1739529118515,6.10924515,2710.7,2710.2,4.51684]
[1739529118516,6.88384515,2710.7,2710.2,4.51684]
[1739529118715,3.68925,2710.6,2710.2,4.51684]
[1739529118949,3.68925,2710.6,2710.3,0.15642173]
[1739529119157,6.88384515,2710.7,2710.3,0.15642173]
[1739529119359,11.63031967,2710.7,2710.2,4.51685]
[1739529119524,3.68926,2710.6,2710.4,0.15631423]
[1739529119727,3.68926,2710.6,2710.3,0.15642173]
[1739529119925,6.88384515,2710.7,2710.5,0.15620673]
[1739529120127,10.57303515,2710.7,2710.4,0.15631423]
[1739529120345,10.57303515,2710.7,2710.6,0.15609925]
[1739529120546,6.88384515,2710.7,2710.5,0.15620673]
[1739529120733,6.88384515,2710.7,2710.6,0.15609925]
[1739529121056,3.68926,2710.6,2710.3,0.55]
[1739529121440,6.88383515,2710.7,2710.3,0.55]
[1739529121640,10.57299515,2710.7,2710.3,0.55]
[1739529121850,6.88383515,2710.7,2710.3,0.55]
[1739529122434,0.7746,2710.7,2710.3,0.55]
[1739529122636,6.88335515,2711.0,2710.5,0.55]
[1739529122839,3.19467515,2711.0,2710.5,1.3771]
[1739529123065,3.19467515,2711.0,2710.7,0.55]
[1739529123416,3.0,2711.2,2710.7,0.55]
[1739529123621,3.0,2711.2,2710.6,3.68921]
[1739529123855,3.68863,2711.1,2710.7,0.55]
[1739529124558,3.68861,2711.1,2710.7,0.55]
[1739529124926,3.0,2711.2,2710.7,0.55]
[1739529125127,3.0,2711.2,2710.9,0.55]
[1739529125761,6.88299515,2711.3,2710.9,0.55]
[1739529125968,10.57138515,2711.3,2710.9,0.55]
[1739529126983,6.88299515,2711.3,2710.9,0.55]
[1739529127468,0.7746,2711.3,2711.0,0.55]
[1739529127669,0.72513332,2711.7,2711.0,0.73948]
[1739529127670,4.4776,2711.7,2711.0,0.73948]
[1739529127859,4.4776,2711.7,2711.3,0.55]
[1739529128628,0.7898,2711.7,2711.3,0.55]
[1739529128870,0.7898,2711.9,2711.6,0.55]
[1739529129073,3.68733,2712.0,2711.6,0.55]
[1739529129278,0.7898,2712.1,2711.7,0.15472112]
[1739529129476,4.47704,2712.1,2711.7,0.15472112]
[1739529129776,0.7898,2712.3,2711.9,3.68735]
[1739529130006,4.47674,2712.3,2711.8,5.03229]
[1739529130281,4.47674,2712.3,2711.9,0.15429086]
[1739529131061,3.68694,2712.3,2711.9,0.15429086]
[1739529131275,6.89659515,2712.5,2712.0,0.55]
[1739529131576,12.16338419,2712.5,2712.0,0.55]
[1739529131773,9.69406528,2712.7,2712.1,0.15407612]
[1739529131939,3.68657,2712.6,2712.1,0.15407612]
[1739529132362,0.7898,2712.7,2712.2,0.55]
[1739529132564,3.0,2712.8,2712.4,0.55]
[1739529132766,0.7898,2712.9,2712.5,3.68655]
[1739529132932,3.68601,2713.0,2712.6,0.55]
[1739529133138,4.4757,2713.1,2712.6,0.55]
[1739529133446,3.6859,2713.1,2712.8,0.55]
[1739529133852,3.6859,2713.1,2712.9,0.15297131]
[1739529134464,3.68557,2713.3,2712.9,0.15297131]
[1739529134667,8.90310528,2713.5,2712.9,3.83905131]
[1739529134839,3.68542,2713.4,2712.9,0.15297131]
[1739529135039,8.90310528,2713.5,2712.9,0.15297131]
[1739529135040,3.68532,2713.5,2713.0,0.55]
[1739529135269,7.37072,2713.5,2713.0,0.55]
[1739529135467,3.68546,2713.4,2713.2,0.55]
[1739529135940,3.68546,2713.4,2713.3,0.15146917]
[1739529136240,3.68546,2713.4,2713.2,0.55]
[1739529136241,3.68577,2713.2,2712.8,0.7948]
[1739529136463,3.68597,2713.0,2712.8,0.7948]
[1739529136667,3.68597,2713.0,2712.5,4.48141]
[1739529137061,3.68597,2713.0,2712.6,0.55]
[1739529137340,3.68577,2713.2,2712.6,0.55]
[1739529137576,3.68583,2713.1,2712.6,0.55]
[1739529138106,3.68599,2713.0,2712.6,0.55]
[1739529139341,3.68614,2712.9,2712.6,1.053155]
[1739529140242,3.68614,2712.9,2712.6,0.55]
[1739529140655,3.68652,2712.6,2712.2,0.7899]
[1739529140890,3.68663,2712.5,2712.2,0.7899]
[1739529141817,7.37339,2712.5,2712.2,0.7899]
[1739529142091,3.68663,2712.5,2712.2,0.7899]
[1739529142445,3.6867,2712.5,2712.2,0.7899]
[1739529143344,7.37344,2712.5,2712.2,0.7899]
[1739529143548,3.6867,2712.5,2712.2,0.7899]
[1739529144287,7.37346,2712.5,2712.2,0.7899]
[1739529144491,3.6867,2712.5,2712.2,0.7899]
[1739529145579,3.68645,2712.7,2712.2,0.7899]
[1739529145749,3.68661,2712.6,2712.2,0.7899]
[1739529145948,3.68664,2712.5,2712.2,0.7899]
[1739529148768,3.68664,2712.5,2712.3,0.15254226]
[1739529149093,3.68664,2712.5,2712.2,0.7899]
[1739529149291,3.68664,2712.5,2712.4,0.15243492]
[1739529149493,3.68677,2712.4,2712.3,0.15254226]
[1739529149710,7.59692415,2712.5,2711.7,0.7899]
[1739529149711,3.68713,2712.2,2711.7,0.7899]
[1739529150084,3.68713,2712.2,2711.8,0.55]
[1739529150407,3.6872,2712.1,2711.7,0.7899]
[1739529150917,3.68732,2712.0,2711.8,0.55]
[1739529151571,3.68732,2712.0,2711.5,0.7899]
[1739529151572,4.44022,2712.0,2711.5,0.7899]
[1739529151764,3.6876,2711.8,2711.5,0.7899]
[1739529152296,3.6876,2711.8,2711.3,3.68826]
[1739529152297,3.68772,2711.7,2711.1,4.47832]
[1739529152498,3.68772,2711.7,2711.2,0.55]
[1739529152793,3.68775,2711.7,2711.2,4.23839]
[1739529152967,3.6876,2711.8,2711.2,7.92678]
[1739529153164,3.6876,2711.8,2711.4,0.55]
[1739529153768,3.6876,2711.8,2711.4,3.68813]
[1739529154171,3.6876,2711.8,2711.3,0.55]
[1739529154366,3.6876,2711.8,2711.3,1.5059769]
[1739529154770,4.44029,2712.0,2711.3,5.1941169]
[1739529154998,3.68752,2711.9,2711.4,3.68804]
[1739529155153,3.68759,2711.8,2711.4,3.68804]
[1739529155358,4.44029,2712.0,2711.4,3.68804]
[1739529155805,3.68756,2711.9,2711.4,3.68804]
[1739529155979,3.68766,2711.8,2711.3,5.1942369]
[1739529157004,3.68766,2711.8,2711.4,3.68813]
[1739529157362,3.68766,2711.8,2711.3,1.5059769]
[1739529157699,3.68766,2711.8,2711.3,5.1942169]
[1739529158072,3.68766,2711.8,2711.3,5.1941669]
[1739529159802,7.37533,2711.8,2711.3,5.1941669]
[1739529160102,3.68781,2711.7,2711.3,1.5059769]
[1739529160310,3.68798,2711.6,2711.3,0.55]
[1739529161177,3.68806,2711.5,2711.3,0.55]
[1739529161392,3.68793,2711.6,2711.3,0.55]
[1739529161597,0.7898,2711.5,2711.3,0.55]
[1739529162167,4.47753,2711.7,2711.3,0.55]
[1739529162594,3.68769,2711.8,2711.3,5.109853]
[1739529162995,7.3754,2711.8,2711.3,5.109853]
[1739529163815,7.3754,2711.8,2711.4,0.15428919]
[1739529164517,3.68769,2711.8,2711.4,0.15428919]
[1739529164810,7.37539,2711.8,2711.4,0.15428919]
[1739529165170,3.68769,2711.8,2711.4,0.15428919]
[1739529165367,7.37537,2711.8,2711.4,0.15428919]
[1739529165566,3.68773,2711.7,2711.4,0.15428919]
[1739529166271,3.68759,2711.8,2711.4,0.15428919]
[1739529166723,3.6876,2711.8,2711.4,0.15428919]
[1739529166897,3.6876,2711.8,2711.5,0.8169]
[1739529167318,3.6876,2711.8,2711.6,0.15407437]
[1739529169418,0.7959,2712.1,2711.6,0.61998181]
[1739529169586,3.68737,2712.0,2711.6,0.61998181]
[1739529170608,3.68766,2711.8,2711.6,0.15407437]
[1739529171324,3.68745,2711.9,2711.6,0.15407437]
[1739529171513,3.68738,2712.0,2711.5,4.23792]
[1739529171714,3.68738,2712.0,2711.7,0.15401314]
[1739529171909,3.68714,2712.2,2711.7,0.7615]
[1739529172113,8.90472528,2712.3,2711.8,3.84141575]
[1739529172322,5.21778528,2712.3,2711.8,0.15390575]
[1739529172529,3.68718,2712.1,2711.8,0.15390575]
[1739529173111,3.68704,2712.2,2711.8,0.15390575]
[1739529173452,7.37417,2712.2,2711.8,0.15390575]
[1739529173853,3.68723,2712.1,2711.8,0.15390575]
[1739529174767,3.68704,2712.2,2711.8,0.15390575]
[1739529174914,3.68724,2712.1,2711.8,0.15390575]
[1739529176552,3.68704,2712.2,2711.8,0.15390575]
[1739529176727,3.68719,2712.1,2711.8,1.12640663]
[1739529177625,3.68692,2712.3,2711.8,1.12640663]
[1739529177827,3.68692,2712.3,2712.0,0.7615]
[1739529178030,3.68686,2712.4,2712.1,0.15137346]
[1739529178375,4.48263,2712.5,2712.1,0.15137346]
[1739529178660,3.68692,2712.3,2712.1,0.15137346]
[1739529179058,7.37392,2712.3,2712.1,0.15137346]
[1739529179222,7.37395,2712.3,2712.1,0.15137346]
[1739529179423,3.68704,2712.2,2712.1,0.15137346]
[1739529180359,5.220335,2712.2,2712.1,0.15137346]
[1739529180520,3.68752,2711.9,2711.5,0.7615]
[1739529181030,6.90308515,2712.2,2711.6,0.15165268]
[1739529181236,0.7959,2712.1,2711.6,0.15165268]
[1739529181459,4.48362,2711.7,2711.6,0.15165268]
[1739529181682,4.48362,2711.7,2711.3,0.7615]
[1739529181889,3.6879,2711.6,2711.3,1.261499]
[1739529182278,4.48362,2711.7,2711.3,1.261499]
[1739529184672,3.68745,2711.9,2711.4,3.68802]
[1739529185172,0.7773,2712.0,2711.2,0.55]
[1739529185369,3.68813,2711.4,2711.1,0.7543]
[1739529185785,3.68813,2711.4,2710.5,11.75]
[1739529185786,2.42007515,2711.3,2710.4,0.7543]
[1739529185988,3.68876,2711.0,2710.4,0.7543]
[1739529186144,3.68876,2711.0,2710.5,3.68934]
[1739529186341,3.68876,2711.0,2710.6,0.55]
[1739529186561,3.68876,2711.0,2710.6,0.499364]
[1739529186762,7.37752,2711.0,2710.6,0.499364]
[1739529186982,3.68876,2711.0,2710.6,0.499364]
[1739529187145,3.68882,2710.9,2710.5,0.55]
[1739529187345,3.68909,2710.7,2710.4,0.7543]
[1739529187546,0.7773,2710.9,2710.4,0.7543]
[1739529187849,3.68903,2710.8,2710.5,0.55]
[1739529188052,3.68903,2710.8,2710.5,1.049388]
[1739529188249,3.68911,2710.7,2710.4,0.7543]
[1739529188471,3.68911,2710.7,2710.2,0.7543]
[1739529188862,3.68911,2710.7,2710.3,0.55]
[1739529189245,3.68894,2710.8,2710.2,4.44397]
[1739529189873,3.68894,2710.8,2710.3,0.55]
[1739529190092,3.68894,2710.8,2710.3,4.739019]
[1739529190291,0.7773,2710.9,2710.4,3.68946]
[1739529190651,0.7773,2710.9,2710.3,4.738959]
[1739529190851,4.46617,2710.9,2710.3,4.738919]
[1739529191077,3.68895,2710.8,2710.3,4.738919]
[1739529191478,3.68895,2710.8,2710.4,0.5493219]
[1739529192247,7.37802,2710.8,2710.4,0.5493219]
[1739529192452,3.68895,2710.8,2710.4,0.5493219]
[1739529192690,7.37801,2710.8,2710.4,0.5493219]
[1739529192993,3.68895,2710.8,2710.4,0.5493219]
[1739529193193,7.37797,2710.8,2710.4,0.5493219]
[1739529193594,0.7773,2710.9,2710.4,4.2387919]
[1739529193793,3.68875,2711.0,2710.5,1.60213019]
[1739529193972,3.68889,2710.9,2710.5,1.75568801]